fUST/lending_fUST_20240730
["ID","MTS","AMOUNT","RATE_DAILY","PERIOD"]
[333679820,1722347444449,-500.0,0.00013972,2]
[333679821,1722347444458,-500.0,0.00013972,2]
[333679822,1722347444468,-500.0,0.00013972,2]
[333679823,1722347444477,-500.0,0.00013972,2]
[333679824,1722347444487,-500.0,0.00013972,2]
[333679825,1722347444496,-500.0,0.00013972,2]
[333679826,1722347444506,-500.0,0.00013972,2]
[333679827,1722347444516,-436.48,0.00013972,2]
[333679828,1722347444527,-500.0,0.00013972,2]
[333679829,1722347444539,-500.0,0.00013972,2]
[333679830,1722347444549,-500.0,0.00013972,2]
[333679831,1722347444559,-607.64,0.00013972,2]
[333679832,1722347444569,-500.0,0.00013972,2]
[333679833,1722347444579,-446.35100869,0.00013972,2]
[333679834,1722347444590,-500.0,0.00013972,2]
[333679835,1722347444600,-500.0,0.00013972,2]
[333679836,1722347444609,-584.52658902,0.00013972,2]
[333679837,1722347444619,-504.54525538,0.00013972,2]
[333679838,1722347444628,-505.16943299,0.00013972,2]
[333679839,1722347444639,-500.0,0.00013972,2]
[333679840,1722347444649,-500.0,0.00013972,2]
[333679841,1722347444659,-503.82262506,0.00013972,2]
[333679842,1722347444669,-500.0,0.00013972,2]
[333679843,1722347444682,-500.0,0.00013972,2]
[333679844,1722347444691,-500.0,0.00013972,2]
[333679845,1722347444699,-507.85025892,0.00013972,2]
[333679846,1722347444708,-500.0,0.00013972,2]
[333679847,1722347444718,-500.0,0.00013972,2]
[333679848,1722347444727,-500.0,0.00013972,2]
[333679849,1722347444736,-153.36686704,0.00013972,2]
[333679850,1722347444746,-500.0,0.00013972,2]
[333679851,1722347444759,-500.0,0.00013972,2]
[333679852,1722347444768,-383.54571524,0.00013972,2]
[333679853,1722347444778,-504.95139682,0.00013972,2]
[333679854,1722347444789,-500.0,0.00013972,2]
[333679855,1722347444798,-500.0,0.00013972,2]
[333679856,1722347444809,-500.0,0.00013972,2]
[333679857,1722347444821,-500.0,0.00013972,2]
[333679858,1722347444831,-506.22815648,0.00013972,2]
[333679859,1722347444841,-240.97595881,0.00013972,2]
[333679860,1722347444851,-220.06121678,0.00013972,2]
[333679861,1722347444861,-597.8,0.00013972,2]
[333679862,1722347444871,-500.0,0.00013972,2]
[333679863,1722347444881,-370.18362832,0.00013972,2]
[333679864,1722347444894,-500.0,0.00013972,2]
[333679865,1722347444903,-216.51,0.00013972,2]
[333679866,1722347444916,-224.58814785,0.00013972,2]
[333679867,1722347444926,-833.33,0.00013972,2]
[333679868,1722347444937,-294.78,0.00013972,2]
[333679869,1722347444947,-267.42,0.00013972,2]
[333679870,1722347444958,-500.0,0.00013972,2]
[333679871,1722347444968,-500.0,0.00013972,2]
[333679872,1722347444978,-500.0,0.00013972,2]
[333679873,1722347444987,-585.08733386,0.00013972,2]
[333679874,1722347444997,-507.56723377,0.00013972,2]
[333679875,1722347445006,-508.84776779,0.00013972,2]
[333679876,1722347445015,-597.40057287,0.00013972,2]
[333679877,1722347445025,-512.30480981,0.00013972,2]
[333679878,1722347445035,-500.0,0.00013972,2]
[333679879,1722347445045,-504.4296012,0.00013972,2]
[333679880,1722347445054,-500.0,0.00013972,2]
[333679881,1722347445063,-500.0,0.00013972,2]
[333679882,1722347445072,-500.0,0.00013972,2]
[333679883,1722347445082,-500.0,0.00013972,2]
[333679884,1722347445092,-503.27924956,0.00013972,2]
[333679885,1722347445101,-521.85,0.00013972,2]
[333679886,1722347445110,-459.71529664,0.00013972,2]
[333679887,1722347445120,-500.0,0.00013972,2]
[333679888,1722347445129,-500.0,0.00013972,2]
[333679889,1722347445140,-510.4781678,0.00013972,2]
[333679890,1722347445149,-524.64534186,0.00013972,2]
[333679891,1722347445158,-502.32082155,0.00013972,2]
[333679892,1722347445167,-504.8430682,0.00013972,2]
[333679893,1722347445177,-500.0,0.00013972,2]
[333679894,1722347445186,-500.0,0.00013972,2]
[333679895,1722347445195,-500.0,0.00013972,2]
[333679896,1722347445312,-500.0,0.00013972,2]
[333679897,1722347445321,-500.0,0.00013972,2]
[333679898,1722347445331,-500.0,0.00013972,2]
[333679899,1722347445340,-500.0,0.00013972,2]
[333679900,1722347445350,-500.0,0.00013972,2]
[333679901,1722347445360,-503.55350925,0.00013972,2]
[333679902,1722347445370,-500.0,0.00013972,2]
[333679903,1722347445379,-500.0,0.00013972,2]
[333679904,1722347445389,-500.0,0.00013972,2]
[333679905,1722347445398,-511.55183873,0.00013972,2]
[333679906,1722347445407,-326.09279388,0.00013972,2]
[333679907,1722347445416,-505.31830887,0.00013972,2]
[333679908,1722347445425,-505.71006865,0.00013972,2]
[333679909,1722347445435,-506.88481542,0.00013972,2]
[333679910,1722347445445,-290.51,0.00013972,2]
[333679911,1722347445454,-500.0,0.00013972,2]
[333679912,1722347445464,-500.0,0.00013972,2]
[333679913,1722347445473,-505.10663485,0.00013972,2]
[333679914,1722347445483,-528.22914111,0.00013972,2]
[333679915,1722347445493,-500.0,0.00013972,2]
[333679916,1722347445502,-500.0,0.00013972,2]
[333679917,1722347445513,-500.0,0.00013972,2]
[333679918,1722347445525,-502.16027496,0.00013972,2]
[333679919,1722347445535,-500.0,0.00013972,2]
[333679920,1722347445545,-500.0,0.00013972,2]
[333679921,1722347445556,-500.0,0.00013972,2]
[333679922,1722347445566,-506.2126841,0.00013972,2]
[333679923,1722347445578,-500.0,0.00013972,2]
[333679924,1722347445587,-500.0,0.00013972,2]
[333679925,1722347445596,-509.01525306,0.00013972,2]
[333679926,1722347445606,-319.53051944,0.00013972,2]
[333679927,1722347445615,-293.36568634,0.00013972,2]
[333679928,1722347445624,-488.75009655,0.00013972,2]
[333679929,1722347445634,-500.0,0.00013972,2]
[333679930,1722347445645,-500.0,0.00013972,2]
[333679931,1722347445653,-500.0,0.00013972,2]
[333679932,1722347445663,-500.0,0.00013972,2]
[333679933,1722347445672,-500.0,0.00013972,2]
[333679934,1722347445681,-508.17704361,0.00013972,2]
[333679935,1722347445690,-515.70379976,0.00013972,2]
[333679936,1722347445700,-442.66956567,0.00013972,2]
[333679937,1722347445709,-500.0,0.00013972,2]
[333679938,1722347445719,-500.0,0.00013972,2]
[333679939,1722347445729,-594.44318875,0.00013972,2]
[333679940,1722347445738,-500.0,0.00013972,2]
[333679941,1722347445748,-500.0,0.00013972,2]
[333679942,1722347445760,-500.0,0.00013972,2]
[333679943,1722347445769,-500.0,0.00013972,2]
[333679944,1722347445780,-500.0,0.00013972,2]
[333679945,1722347445790,-507.81651231,0.00013972,2]
[333679946,1722347445801,-500.0,0.00013972,2]
[333679947,1722347445811,-503.06931546,0.00013972,2]
[333679948,1722347445822,-500.0,0.00013972,2]
[333679949,1722347445834,-500.0,0.00013972,2]
[333679950,1722347445844,-511.26663846,0.00013972,2]
[333679951,1722347445854,-500.0,0.00013972,2]
[333679952,1722347445863,-503.85566045,0.00013972,2]
[333679953,1722347445873,-500.0,0.00013972,2]
[333679954,1722347445883,-500.0,0.00013972,2]
[333679955,1722347445894,-500.0,0.00013972,2]
[333679956,1722347445904,-500.0,0.00013972,2]
[333679957,1722347445914,-500.0,0.00013972,2]
[333679958,1722347445923,-500.0,0.00013972,2]
[333679959,1722347445932,-244.36058319,0.00013972,2]
[333679960,1722347445941,-500.0,0.00013972,2]
[333679961,1722347445950,-500.0,0.00013972,2]
[333679962,1722347445960,-514.75792423,0.00013972,2]
[333679963,1722347445970,-500.0,0.00013972,2]
[333679964,1722347445979,-500.0,0.00013972,2]
[333679965,1722347445988,-500.0,0.00013972,2]
[333679966,1722347445998,-512.01800743,0.00013972,2]
[333679967,1722347446008,-505.5321376,0.00013972,2]
[333679968,1722347446017,-500.0,0.00013972,2]
[333679969,1722347446027,-521.48766593,0.00013972,2]
[333679970,1722347446037,-176.89,0.00013972,2]
[333679971,1722347446048,-500.0,0.00013972,2]
[333679972,1722347446058,-500.0,0.00013972,2]
[333679973,1722347446068,-500.0,0.00013972,2]
[333679974,1722347446077,-500.0,0.00013972,2]
[333679976,1722347446086,-500.0,0.00013972,2]
[333679977,1722347446098,-503.42198237,0.00013972,2]
[333679978,1722347446108,-505.86545012,0.00013972,2]
[333679979,1722347446120,-293.05473515,0.00013972,2]
[333679980,1722347446130,-505.75429339,0.00013972,2]
[333679981,1722347446140,-510.6722939,0.00013972,2]
[333679982,1722347446149,-500.0,0.00013972,2]
[333679983,1722347446159,-500.0,0.00013972,2]
[333679984,1722347446169,-500.0,0.00013972,2]
[333679985,1722347446178,-500.0,0.00013972,2]
[333679986,1722347446187,-500.0,0.00013972,2]
[333679988,1722347446197,-500.0,0.00013972,2]
[333679989,1722347446207,-500.0,0.00013972,2]
[333679991,1722347446217,-503.38329865,0.00013972,2]
[333679993,1722347446226,-500.0,0.00013972,2]
[333679995,1722347446235,-500.0,0.00013972,2]
[333679996,1722347446245,-504.28363064,0.00013972,2]
[333679997,1722347446258,-500.0,0.00013972,2]
[333679998,1722347446268,-509.78645347,0.00013972,2]
[333679999,1722347446277,-500.0,0.00013972,2]
[333680000,1722347446286,-213.95271812,0.00013972,2]
[333680001,1722347446295,-508.43447397,0.00013972,2]
[333680002,1722347446305,-500.0,0.00013972,2]
[333680003,1722347446315,-500.0,0.00013972,2]
[333680004,1722347446326,-500.0,0.00013972,2]
[333680005,1722347446335,-500.0,0.00013972,2]
[333680007,1722347446346,-500.0,0.00013972,2]
[333680008,1722347446356,-500.0,0.00013972,2]
[333680009,1722347446367,-500.0,0.00013972,2]
[333680010,1722347446376,-276.81533448,0.00013972,2]
[333680011,1722347446385,-500.0,0.00013972,2]
[333680012,1722347446395,-506.50072876,0.00013972,2]
[333680013,1722347446404,-500.0,0.00013972,2]
[333680014,1722347446413,-506.04513653,0.00013972,2]
[333680015,1722347446422,-514.68005845,0.00013972,2]
[333680016,1722347446432,-501.85469413,0.00013972,2]
[333680017,1722347446442,-507.62258195,0.00013972,2]
[333680018,1722347446451,-453.70891622,0.00013972,2]
[333680019,1722347446460,-500.0,0.00013972,2]
[333680020,1722347446469,-500.0,0.00013972,2]
[333680021,1722347446478,-502.7439087,0.00013972,2]
[333680022,1722347446488,-500.0,0.00013972,2]
[333680023,1722347446498,-520.39711457,0.00013972,2]
[333680024,1722347446508,-504.70838598,0.00013972,2]
[333680025,1722347446518,-507.23967588,0.00013972,2]
[333680026,1722347446527,-517.04881475,0.00013972,2]
[333680027,1722347446537,-500.0,0.00013972,2]
[333680028,1722347446551,-500.0,0.00013972,2]
[333680029,1722347446561,-500.0,0.00013972,2]
[333680030,1722347446571,-500.0,0.00013972,2]
[333680031,1722347446581,-508.08858845,0.00013972,2]
[333680032,1722347446591,-500.0,0.00013972,2]
[333680033,1722347446600,-500.0,0.00013972,2]
[333680034,1722347446610,-500.0,0.00013972,2]
[333680035,1722347446620,-507.58710656,0.00013972,2]
[333680036,1722347446630,-505.50648136,0.00013972,2]
[333680037,1722347446640,-508.06675863,0.00013972,2]
[333680038,1722347446649,-500.0,0.00013972,2]
[333680039,1722347446658,-500.0,0.00013972,2]
[333680040,1722347446667,-505.70021294,0.00013972,2]
[333680041,1722347446677,-500.0,0.00013972,2]
[333680042,1722347446687,-505.48545274,0.00013972,2]
[333680043,1722347446698,-506.94553374,0.00013972,2]
[333680044,1722347446709,-504.19977824,0.00013972,2]
[333680045,1722347446719,-500.0,0.00013972,2]
[333680046,1722347446729,-500.0,0.00013972,2]
[333680047,1722347446739,-500.0,0.00013972,2]
[333680048,1722347446748,-504.09782158,0.00013972,2]
[333680049,1722347446761,-508.10789393,0.00013972,2]
[333680050,1722347446771,-511.91910963,0.00013972,2]
[333680051,1722347446781,-642.39616242,0.00013972,2]
[333680052,1722347446791,-502.69214972,0.00013972,2]
[333680053,1722347446801,-506.53640605,0.00013972,2]
[333680054,1722347446811,-508.11954702,0.00013972,2]
[333680055,1722347446820,-511.79569878,0.00013972,2]
[333680056,1722347446837,-508.78878618,0.00013972,2]
[333680057,1722347446846,-505.54035652,0.00013972,2]
[333680058,1722347446856,-505.16275243,0.00013972,2]
[333680059,1722347446866,-500.0,0.00013972,2]
[333680060,1722347446875,-503.57879875,0.00013972,2]
[333680061,1722347446885,-510.25147886,0.00013972,2]
[333680062,1722347446897,-500.0,0.00013972,2]
[333680063,1722347446906,-521.27232705,0.00013972,2]
[333680064,1722347446916,-500.0,0.00013972,2]
[333680065,1722347446926,-504.20394841,0.00013972,2]
[333680066,1722347446935,-500.0,0.00013972,2]
[333680067,1722347446945,-500.0,0.00013972,2]
[333680068,1722347446956,-511.98246265,0.00013972,2]
[333680069,1722347446967,-224.41322949,0.00013972,2]
[333680070,1722347446976,-466.15635534,0.00013972,2]
[333680071,1722347446986,-512.31653046,0.00013972,2]
[333680072,1722347446996,-266.01080405,0.00013972,2]
[333680073,1722347447006,-505.7304349,0.00013972,2]
[333680074,1722347447015,-500.0,0.00013972,2]
[333680075,1722347447025,-500.0,0.00013972,2]
[333680076,1722347447034,-517.23677018,0.00013972,2]
[333680077,1722347447044,-507.2096251,0.00013972,2]
[333680078,1722347447053,-505.49931025,0.00013972,2]
[333680079,1722347447063,-500.0,0.00013972,2]
[333680080,1722347447073,-588.68,0.00013972,2]
[333680081,1722347447083,-580.79024971,0.00013972,2]
[333680082,1722347447092,-500.0,0.00013972,2]
[333680083,1722347447102,-426.635913,0.00013972,2]
[333680084,1722347447122,-500.0,0.00013972,2]
[333680085,1722347447137,-503.68280845,0.00013972,2]
[333680086,1722347447149,-500.0,0.00013972,2]
[333680087,1722347447159,-500.0,0.00013972,2]
[333680088,1722347447169,-500.0,0.00013972,2]
[333680089,1722347447179,-500.0,0.00013972,2]
[333680090,1722347447189,-500.0,0.00013972,2]
[333680091,1722347447198,-500.0,0.00013972,2]
[333680092,1722347447208,-259.77,0.00013972,2]
[333680093,1722347447219,-500.0,0.00013972,2]
[333680094,1722347447230,-500.0,0.00013972,2]
[333680095,1722347447240,-500.0,0.00013972,2]
[333680096,1722347447250,-507.32289414,0.00013972,2]
[333680097,1722347447260,-515.21616826,0.00013972,2]
[333680098,1722347447270,-494.2,0.00013972,2]
[333680099,1722347447280,-500.0,0.00013972,2]
[333680100,1722347447290,-500.0,0.00013972,2]
[333680101,1722347447299,-617.58,0.00013972,2]
[333680102,1722347447310,-500.0,0.00013972,2]
[333680103,1722347447322,-500.0,0.00013972,2]
[333680104,1722347447334,-503.72135365,0.00013972,2]
[333680105,1722347447343,-507.34818783,0.00013972,2]
[333680106,1722347447355,-508.57993137,0.00013972,2]
[333680107,1722347447365,-500.0,0.00013972,2]
[333680108,1722347447375,-500.0,0.00013972,2]
[333680109,1722347447385,-504.95529956,0.00013972,2]
[333680110,1722347447396,-507.51431982,0.00013972,2]
[333680111,1722347447406,-500.0,0.00013972,2]
[333680112,1722347447415,-500.0,0.00013972,2]
[333680113,1722347447424,-504.10445539,0.00013972,2]
[333680114,1722347447435,-475.54,0.00013972,2]
[333680115,1722347447445,-627.77672759,0.00013972,2]
[333680116,1722347447454,-500.0,0.00013972,2]
[333680117,1722347447463,-500.0,0.00013972,2]
[333680118,1722347447473,-484.94979005,0.00013972,2]
[333680119,1722347447483,-500.0,0.00013972,2]
[333680120,1722347447493,-588.68,0.00013972,2]
[333680121,1722347447502,-505.08259757,0.00013972,2]
[333680122,1722347447513,-500.0,0.00013972,2]
[333680123,1722347447522,-500.0,0.00013972,2]
[333680124,1722347447532,-646.16176269,0.00013972,2]
[333680125,1722347447542,-500.0,0.00013972,2]
[333680126,1722347447552,-500.0,0.00013972,2]
[333680127,1722347447562,-500.0,0.00013972,2]
[333680128,1722347447571,-154.79978101,0.00013972,2]
[333680129,1722347447581,-500.0,0.00013972,2]
[333680130,1722347447592,-150.39464237,0.00013972,2]
[333680131,1722347447603,-500.0,0.00013972,2]
[333680132,1722347447612,-500.0,0.00013972,2]
[333680133,1722347447622,-500.0,0.00013972,2]
[333680134,1722347447632,-638.39010631,0.00013972,2]
[333680135,1722347447642,-500.0,0.00013972,2]
[333680136,1722347447652,-505.7207358,0.00013972,2]
[333680137,1722347447662,-500.0,0.00013972,2]
[333680138,1722347447672,-500.0,0.00013972,2]
[333680139,1722347447682,-505.51149542,0.00013972,2]
[333680140,1722347447691,-507.2138894,0.00013972,2]
[333680141,1722347447701,-500.0,0.00013972,2]
[333680142,1722347447711,-500.0,0.00013972,2]
[333680143,1722347447720,-500.0,0.00013972,2]
[333680144,1722347447730,-190.79,0.00013972,2]
[333680145,1722347447739,-500.0,0.00013972,2]
[333680146,1722347447750,-500.0,0.00013972,2]
[333680147,1722347447905,-512.10635933,0.00013972,2]
[333680148,1722347447915,-434.89,0.00013972,2]
[333680149,1722347447933,-500.0,0.00013972,2]
[333680150,1722347447943,-500.0,0.00013972,2]
[333680151,1722347447952,-504.31399478,0.00013972,2]
[333680152,1722347447962,-500.0,0.00013972,2]
[333680153,1722347447974,-500.0,0.00013972,2]
[333680154,1722347447984,-500.0,0.00013972,2]
[333680155,1722347447993,-615.21,0.00013972,2]
[333680156,1722347448003,-518.20317057,0.00013972,2]
[333680157,1722347448013,-500.0,0.00013972,2]
[333680158,1722347448023,-500.0,0.00013972,2]
[333680159,1722347448032,-500.0,0.00013972,2]
[333680160,1722347448042,-500.0,0.00013972,2]
[333680161,1722347448052,-500.0,0.00013972,2]
[333680162,1722347448062,-500.0,0.00013972,2]
[333680163,1722347448072,-505.92940624,0.00013972,2]
[333680164,1722347448082,-509.94503364,0.00013972,2]
[333680165,1722347448092,-500.0,0.00013972,2]
[333680166,1722347448102,-500.0,0.00013972,2]
[333680167,1722347448111,-387.3079243,0.00013972,2]
[333680168,1722347448122,-500.0,0.00013972,2]
[333680169,1722347448132,-500.0,0.00013972,2]
[333680170,1722347448141,-500.0,0.00013972,2]
[333680171,1722347448151,-500.0,0.00013972,2]
[333680172,1722347448161,-500.0,0.00013972,2]
[333680173,1722347448171,-500.0,0.00013972,2]
[333680174,1722347448181,-507.59657925,0.00013972,2]
[333680175,1722347448191,-500.0,0.00013972,2]
[333680176,1722347448201,-276.02346293,0.00013972,2]
[333680177,1722347448211,-500.0,0.00013972,2]
[333680178,1722347448221,-500.0,0.00013972,2]
[333680179,1722347448232,-500.0,0.00013972,2]
[333680180,1722347448242,-500.0,0.00013972,2]
[333680181,1722347448252,-500.0,0.00013972,2]
[333680182,1722347448262,-500.0,0.00013972,2]
[333680183,1722347448271,-500.0,0.00013972,2]
[333680184,1722347448281,-500.0,0.00013972,2]
[333680185,1722347448290,-500.0,0.00013972,2]
[333680186,1722347448300,-275.66109632,0.00013972,2]
[333680187,1722347448309,-500.0,0.00013972,2]
[333680188,1722347448319,-500.0,0.00013972,2]
[333680189,1722347448329,-500.0,0.00013972,2]
[333680190,1722347448338,-506.08476174,0.00013972,2]
[333680191,1722347448348,-500.0,0.00013972,2]
[333680192,1722347448358,-500.0,0.00013972,2]
[333680193,1722347448367,-500.0,0.00013972,2]
[333680194,1722347448378,-505.16719484,0.00013972,2]
[333680195,1722347448388,-500.0,0.00013972,2]
[333680196,1722347448398,-500.0,0.00013972,2]
[333680197,1722347448408,-337.06612314,0.00013972,2]
[333680198,1722347448418,-500.0,0.00013972,2]
[333680199,1722347448428,-500.0,0.00013972,2]
[333680200,1722347448438,-500.0,0.00013972,2]
[333680201,1722347448448,-500.0,0.00013972,2]
[333680202,1722347448459,-503.05178327,0.00013972,2]
[333680203,1722347448468,-500.0,0.00013972,2]
[333680204,1722347448479,-504.96702403,0.00013972,2]
[333680205,1722347448488,-500.0,0.00013972,2]
[333680206,1722347448499,-500.0,0.00013972,2]
[333680207,1722347448509,-500.0,0.00013972,2]
[333680208,1722347448520,-503.75673307,0.00013972,2]
[333680209,1722347448530,-500.0,0.00013972,2]
[333680210,1722347448540,-500.0,0.00013972,2]
[333680211,1722347448550,-500.0,0.00013972,2]
[333680212,1722347448561,-191.83,0.00013972,2]
[333680213,1722347448572,-500.0,0.00013972,2]
[333680214,1722347448582,-500.0,0.00013972,2]
[333680215,1722347448591,-500.0,0.00013972,2]
[333680216,1722347448602,-533.47,0.00013972,2]
[333680217,1722347448612,-500.0,0.00013972,2]
[333680218,1722347448623,-500.0,0.00013972,2]
[333680219,1722347448634,-451.18,0.00013972,2]
[333680220,1722347448644,-500.0,0.00013972,2]
[333680221,1722347448654,-257.62,0.00013972,2]
[333680222,1722347448664,-500.0,0.00013972,2]
[333680223,1722347448674,-300.07958888,0.00013972,2]
[333680224,1722347448684,-241.75,0.00013972,2]
[333680225,1722347448694,-525.84715188,0.00013972,2]
[333680226,1722347448705,-504.29558089,0.00013972,2]
[333680227,1722347448716,-528.97781954,0.00013972,2]
[333680228,1722347448725,-506.37014841,0.00013972,2]
[333680229,1722347448736,-500.0,0.00013972,2]
[333680230,1722347448747,-1646.13,0.00013972,2]
[333680231,1722347448760,-500.0,0.00013972,2]
[333680232,1722347448772,-500.0,0.00013972,2]
[333680233,1722347448782,-500.0,0.00013972,2]
[333680234,1722347448792,-500.0,0.00013972,2]
[333680235,1722347448803,-500.0,0.00013972,2]
[333680236,1722347448814,-500.0,0.00013972,2]
[333680237,1722347448823,-519.89730169,0.00013972,2]
[333680238,1722347448834,-628.71,0.00013972,2]
[333680239,1722347448845,-301.5,0.00013972,2]
[333680240,1722347448855,-508.19717035,0.00013972,2]
[333680241,1722347448865,-646.98,0.00013972,2]
[333680242,1722347448875,-500.0,0.00013972,2]
[333680243,1722347448884,-500.0,0.00013972,2]
[333680244,1722347448894,-500.0,0.00013972,2]
[333680245,1722347448905,-509.65691155,0.00013972,2]
[333680246,1722347448915,-569.33,0.00013972,2]
[333680247,1722347448925,-500.0,0.00013972,2]
[333680248,1722347448935,-302.37,0.00013972,2]
[333680249,1722347448944,-500.0,0.00013972,2]
[333680250,1722347448964,-500.0,0.00013972,2]
[333680251,1722347448978,-500.0,0.00013972,2]
[333680252,1722347448988,-500.0,0.00013972,2]
[333680253,1722347448999,-505.04884386,0.00013972,2]
[333680254,1722347449010,-500.0,0.00013972,2]
[333680255,1722347449021,-500.0,0.00013972,2]
[333680256,1722347449033,-500.0,0.00013972,2]
[333680257,1722347449044,-500.0,0.00013972,2]
[333680258,1722347449056,-556.72,0.00013972,2]
[333680259,1722347449068,-500.0,0.00013972,2]
[333680260,1722347449079,-212.08628186,0.00013972,2]
[333680261,1722347449089,-159.29,0.00013972,2]
[333680262,1722347449101,-500.0,0.00013972,2]
[333680263,1722347449112,-500.0,0.00013972,2]
[333680264,1722347449123,-500.0,0.00013972,2]
[333680265,1722347449134,-500.0,0.00013972,2]
[333680266,1722347449150,-500.0,0.00013972,2]
[333680267,1722347449169,-500.0,0.00013972,2]
[333680268,1722347449180,-268.94,0.00013972,2]
[333680269,1722347449191,-500.0,0.00013972,2]
[333680270,1722347449202,-500.0,0.00013972,2]
[333680271,1722347449212,-500.0,0.00013972,2]
[333680272,1722347449222,-435.19852058,0.00013972,2]
[333680273,1722347449234,-500.0,0.00013972,2]
[333680274,1722347449244,-500.0,0.00013972,2]
[333680275,1722347449254,-611.68,0.00013972,2]
[333680276,1722347449265,-284.49,0.00013972,2]
[333680277,1722347449276,-500.0,0.00013972,2]
[333680278,1722347449287,-500.0,0.00013972,2]
[333680279,1722347449297,-500.0,0.00013972,2]
[333680280,1722347449308,-500.0,0.00013972,2]
[333680281,1722347449319,-483.1,0.00013972,2]
[333680282,1722347449330,-598.11,0.00013972,2]
[333680283,1722347449342,-236.9,0.00013972,2]
[333680284,1722347449352,-500.0,0.00013972,2]
[333680285,1722347449362,-500.0,0.00013972,2]
[333680286,1722347449373,-500.0,0.00013972,2]
[333680287,1722347449384,-500.0,0.00013972,2]
[333680288,1722347449395,-291.86170735,0.00013972,2]
[333680289,1722347449405,-500.0,0.00013972,2]
[333680290,1722347449415,-320.32,0.00013972,2]
[333680291,1722347449425,-374.85,0.00013972,2]
[333680292,1722347449437,-500.0,0.00013972,2]
[333680293,1722347449447,-500.0,0.00013972,2]
[333680294,1722347449457,-500.0,0.00013972,2]
[333680295,1722347449468,-500.0,0.00013972,2]
[333680296,1722347449478,-387.07,0.00013972,2]
[333680297,1722347449488,-500.0,0.00013972,2]
[333680298,1722347449499,-500.44866568,0.00013972,2]
[333680299,1722347449509,-223.39696642,0.00013972,2]
[333680300,1722347449519,-506.6791589,0.00013972,2]
[333680301,1722347449530,-500.0,0.00013972,2]
[333680302,1722347449540,-600.2341649,0.00013972,2]
[333680303,1722347449550,-500.0,0.00013972,2]
[333680304,1722347449560,-500.0,0.00013972,2]
[333680305,1722347449569,-500.0,0.00013972,2]
[333680306,1722347449579,-500.0,0.00013972,2]
[333680307,1722347449589,-500.0,0.00013972,2]
[333680308,1722347449599,-500.0,0.00013972,2]
[333680309,1722347449609,-500.0,0.00013972,2]
[333680310,1722347449619,-613.46410381,0.00013972,2]
[333680311,1722347449629,-500.0,0.00013972,2]
[333680312,1722347449639,-500.0,0.00013972,2]
[333680313,1722347449649,-500.0,0.00013972,2]
[333680314,1722347449659,-500.0,0.00013972,2]
[333680315,1722347449670,-500.0,0.00013972,2]
[333680316,1722347449681,-500.0,0.00013972,2]
[333680317,1722347449691,-500.0,0.00013972,2]
[333680318,1722347449701,-500.0,0.00013972,2]
[333680319,1722347449711,-500.0,0.00013972,2]
[333680320,1722347449722,-500.0,0.00013972,2]
[333680321,1722347449731,-500.0,0.00013972,2]
[333680322,1722347449742,-500.0,0.00013972,2]
[333680323,1722347449753,-500.0,0.00013972,2]
[333680324,1722347449765,-500.0,0.00013972,2]
[333680325,1722347449775,-529.46,0.00013972,2]